[Event "Early-Titled-Tuesday-Blitz-May-28-2024"]
[Site "Chess.com"]
[Date "2024.05.28"]
[Round "10"]
[White "Fh2411"]
[Black "Statham_01"]
[Result "0-1"]
[WhiteElo "2551"]
[BlackElo "2705"]
[TimeControl "180+1"]
[EndTime "9:59:14 PDT"]
[Termination "Statham_01 won on time"]

1. d4 {[%clk 0:03:00.9]} 1... e5 {[%clk 0:02:59.7]} 2. dxe5 {[%clk 0:02:57.7]}
2... d6 {[%clk 0:03:00]} 3. Nf3 {[%clk 0:02:56.5]} 3... Nc6 {[%clk 0:03:00.3]}
4. Bg5 {[%clk 0:02:56.3]} 4... Be7 {[%clk 0:02:59.4]} 5. Bxe7 {[%clk 0:02:55.2]}
5... Qxe7 {[%clk 0:03:00.3]} 6. exd6 {[%clk 0:02:55.3]} 6... cxd6 {[%clk
0:03:01.2]} 7. c3 {[%clk 0:02:54.3]} 7... Nf6 {[%clk 0:03:01.5]} 8. e3 {[%clk
0:02:54.3]} 8... Bg4 {[%clk 0:03:00.8]} 9. Nbd2 {[%clk 0:02:53.8]} 9... O-O-O
{[%clk 0:02:59.4]} 10. Bb5 {[%clk 0:02:31.1]} 10... Ne5 {[%clk 0:02:59.2]} 11.
Be2 {[%clk 0:02:25.8]} 11... h5 {[%clk 0:02:46.9]} 12. h3 {[%clk 0:02:13.8]}
12... Kb8 {[%clk 0:02:40.2]} 13. Nb3 {[%clk 0:01:57.8]} 13... Ne4 {[%clk
0:02:32.3]} 14. Nbd4 {[%clk 0:01:36.2]} 14... Bd7 {[%clk 0:02:18]} 15. Qc2
{[%clk 0:01:26.8]} 15... f5 {[%clk 0:02:17.8]} 16. Bd3 {[%clk 0:01:26.9]} 16...
Nc5 {[%clk 0:02:12.1]} 17. Be2 {[%clk 0:01:22.1]} 17... g5 {[%clk 0:02:07.7]}
18. Nxf5 {[%clk 0:01:16.7]} 18... Qh7 {[%clk 0:01:52.9]} 19. N3d4 {[%clk
0:01:13.5]} 19... Rhf8 {[%clk 0:01:49.5]} 20. e4 {[%clk 0:01:06.6]} 20... d5
{[%clk 0:01:49]} 21. f3 {[%clk 0:00:48]} 21... dxe4 {[%clk 0:01:43.8]} 22. fxe4
{[%clk 0:00:48.9]} 22... Bxf5 {[%clk 0:01:35.6]} 23. exf5 {[%clk 0:00:47.5]}
23... g4 {[%clk 0:01:19.1]} 24. hxg4 {[%clk 0:00:40.4]} 24... Qh6 {[%clk
0:01:17.9]} 25. Qd2 {[%clk 0:00:37.3]} 25... Qb6 {[%clk 0:01:00.9]} 26. O-O-O
{[%clk 0:00:28.8]} 26... hxg4 {[%clk 0:01:00.9]} 27. Qc2 {[%clk 0:00:22.5]}
27... Ka8 {[%clk 0:00:58.7]} 28. Kb1 {[%clk 0:00:22.8]} 28... a6 {[%clk
0:00:53]} 29. Rhf1 {[%clk 0:00:17.3]} 29... Rf6 {[%clk 0:00:52.2]} 30. Rf4
{[%clk 0:00:16.5]} 30... Rfd6 {[%clk 0:00:50.6]} 31. Bxg4 {[%clk 0:00:16.3]}
31... Nc4 {[%clk 0:00:48.3]} 32. Qc1 {[%clk 0:00:10.5]} 32... Na4 {[%clk
0:00:42.4]} 33. Rf2 {[%clk 0:00:10.7]} 33... Rd5 {[%clk 0:00:36]} 34. Ka1 {[%clk
0:00:10.8]} 34... Ra5 {[%clk 0:00:33.5]} 35. Bf3 {[%clk 0:00:09.5]} 35... Nc5
{[%clk 0:00:28.3]} 36. Kb1 {[%clk 0:00:07.9]} 36... Ka7 {[%clk 0:00:20.2]} 37.
Be2 {[%clk 0:00:06]} 37... Na3+ {[%clk 0:00:16]} 38. Ka1 {[%clk 0:00:06.2]}
38... Ne4 {[%clk 0:00:16.4]} 39. Rf3 {[%clk 0:00:04.9]} 39... Nb5 {[%clk
0:00:13.2]} 40. Bxb5 {[%clk 0:00:05.1]} 40... axb5 {[%clk 0:00:12.6]} 41. Nb3
{[%clk 0:00:05.7]} 41... Ra8 {[%clk 0:00:04.9]} 42. Nxa5 {[%clk 0:00:04.7]}
42... Qxa5 {[%clk 0:00:05.8]} 43. a3 {[%clk 0:00:02.9]} 43... Nc5 {[%clk
0:00:04.2]} 44. Qe3 {[%clk 0:00:02.6]} 44... Qb6 {[%clk 0:00:03.9]} 45. Kb1
{[%clk 0:00:02.7]} 45... Rc8 {[%clk 0:00:03.2]} 46. Rd5 {[%clk 0:00:02.9]} 46...
Ka8 {[%clk 0:00:02.1]} 47. Qd4 {[%clk 0:00:03.5]} 47... Qc6 {[%clk 0:00:02.2]}
48. f6 {[%clk 0:00:03.8]} 48... Qe6 {[%clk 0:00:02.5]} 49. f7 {[%clk 0:00:03.3]}
49... Qe1+ {[%clk 0:00:01.7]} 50. Ka2 {[%clk 0:00:03.9]} 50... Rf8 {[%clk
0:00:02.4]} 51. Rd8+ {[%clk 0:00:04.1]} 51... Ka7 {[%clk 0:00:02.4]} 52. Rxf8
{[%clk 0:00:04]} 52... Qe6+ {[%clk 0:00:03.2]} 53. Kb1 {[%clk 0:00:02.2]} 53...
b6 {[%clk 0:00:04.1]} 54. Re8 {[%clk 0:00:01.5]} 54... Qg6+ {[%clk 0:00:03.8]}
0-1

[Event "Early-Titled-Tuesday-Blitz-May-28-2024"]
[Site "Chess.com"]
[Date "2024.05.28"]
[Round "10"]
[White "AustinThomas12345"]
[Black "Nasrin_Babayeva"]
[Result "0-1"]
[WhiteElo "2492"]
[BlackElo "2001"]
[TimeControl "180+1"]
[EndTime "9:59:17 PDT"]
[Termination "Nasrin_Babayeva won on time"]

1. d4 {[%clk 0:02:56.1]} 1... d6 {[%clk 0:02:43.2]} 2. c4 {[%clk 0:02:54.6]}
2... e5 {[%clk 0:02:43]} 3. dxe5 {[%clk 0:02:54]} 3... dxe5 {[%clk 0:02:43.9]}
4. Qxd8+ {[%clk 0:02:53.3]} 4... Kxd8 {[%clk 0:02:44.8]} 5. Nc3 {[%clk
0:02:54.2]} 5... Be6 {[%clk 0:02:43.6]} 6. b3 {[%clk 0:02:49.9]} 6... f6 {[%clk
0:02:41.7]} 7. Bb2 {[%clk 0:02:49.9]} 7... c6 {[%clk 0:02:40.7]} 8. O-O-O+
{[%clk 0:02:50.5]} 8... Kc7 {[%clk 0:02:41]} 9. e3 {[%clk 0:02:50.8]} 9... Nd7
{[%clk 0:02:41.5]} 10. Be2 {[%clk 0:02:48.6]} 10... a5 {[%clk 0:02:30.5]} 11.
Nf3 {[%clk 0:02:46.2]} 11... Nc5 {[%clk 0:02:18.8]} 12. Rd2 {[%clk 0:02:38.4]}
12... g5 {[%clk 0:02:14.7]} 13. Rhd1 {[%clk 0:02:25.6]} 13... h5 {[%clk
0:02:08.6]} 14. Ne1 {[%clk 0:02:18.8]} 14... Bg4 {[%clk 0:01:47.5]} 15. f3
{[%clk 0:02:12.3]} 15... Be6 {[%clk 0:01:46.7]} 16. Nd3 {[%clk 0:02:10.7]} 16...
Nh6 {[%clk 0:01:42.3]} 17. f4 {[%clk 0:01:59.1]} 17... e4 {[%clk 0:01:12.5]} 18.
Nf2 {[%clk 0:01:57.4]} 18... gxf4 {[%clk 0:01:06.3]} 19. Nfxe4 {[%clk
0:01:56.4]} 19... fxe3 {[%clk 0:01:01.7]} 20. Rd4 {[%clk 0:01:56.2]} 20... Nf5
{[%clk 0:00:57.4]} 21. Nxc5 {[%clk 0:01:42.7]} 21... Nxd4 {[%clk 0:00:47.9]} 22.
Nxe6+ {[%clk 0:01:30.9]} 22... Nxe6 {[%clk 0:00:48.8]} 23. Ne4 {[%clk
0:01:30.6]} 23... Be7 {[%clk 0:00:41.6]} 24. Nxf6 {[%clk 0:01:27.5]} 24... Bxf6
{[%clk 0:00:35.3]} 25. Bxf6 {[%clk 0:01:28.4]} 25... Rhf8 {[%clk 0:00:27.3]} 26.
Be5+ {[%clk 0:01:24.6]} 26... Kb6 {[%clk 0:00:27.2]} 27. Bxh5 {[%clk 0:01:16.6]}
27... Rf5 {[%clk 0:00:27.2]} 28. c5+ {[%clk 0:01:11.9]} 28... Nxc5 {[%clk
0:00:23.3]} 29. Bd4 {[%clk 0:01:03.9]} 29... Rxh5 {[%clk 0:00:22.6]} 30. Bxe3
{[%clk 0:01:02.8]} 30... Re8 {[%clk 0:00:20.9]} 31. Re1 {[%clk 0:00:58.1]} 31...
Rhe5 {[%clk 0:00:17]} 32. Kd2 {[%clk 0:00:58]} 32... Kb5 {[%clk 0:00:15]} 33.
a4+ {[%clk 0:00:57.7]} 33... Kb4 {[%clk 0:00:15.4]} 34. h4 {[%clk 0:00:45.7]}
34... Nxb3+ {[%clk 0:00:14.3]} 35. Kd3 {[%clk 0:00:44.2]} 35... Nc5+ {[%clk
0:00:11.8]} 36. Kd2 {[%clk 0:00:43.1]} 36... Nxa4 {[%clk 0:00:11.5]} 37. Rb1+
{[%clk 0:00:43]} 37... Kc4 {[%clk 0:00:10.4]} 38. Rc1+ {[%clk 0:00:43.3]} 38...
Kb5 {[%clk 0:00:10.9]} 39. Rb1+ {[%clk 0:00:43.1]} 39... Ka6 {[%clk 0:00:11.8]}
40. Rb3 {[%clk 0:00:40.2]} 40... Rd5+ {[%clk 0:00:11.7]} 41. Ke2 {[%clk
0:00:37.4]} 41... b5 {[%clk 0:00:12.6]} 42. g4 {[%clk 0:00:36.4]} 42... Rde5
{[%clk 0:00:12.7]} 43. Kf2 {[%clk 0:00:35.9]} 43... b4 {[%clk 0:00:12.8]} 44. g5
{[%clk 0:00:32.5]} 44... c5 {[%clk 0:00:13.3]} 45. Bf4 {[%clk 0:00:29.9]} 45...
Rf5 {[%clk 0:00:13.3]} 46. Rf3 {[%clk 0:00:28.9]} 46... c4 {[%clk 0:00:13.4]}
47. g6 {[%clk 0:00:27.3]} 47... Ref8 {[%clk 0:00:14]} 48. g7 {[%clk 0:00:24.1]}
48... Rg8 {[%clk 0:00:14]} 49. Bh6 {[%clk 0:00:17.8]} 49... Rxf3+ {[%clk
0:00:13.8]} 50. Kxf3 {[%clk 0:00:18.7]} 50... b3 {[%clk 0:00:14.3]} 51. Bc1
{[%clk 0:00:03]} 51... b2 {[%clk 0:00:14.8]} 52. Bxb2 {[%clk 0:00:02.8]} 52...
Nxb2 {[%clk 0:00:15.7]} 53. h5 {[%clk 0:00:02]} 53... Rxg7 {[%clk 0:00:16.3]}
54. h6 {[%clk 0:00:02.9]} 54... Rh7 {[%clk 0:00:16.1]} 55. Ke3 {[%clk
0:00:03.8]} 55... Rxh6 {[%clk 0:00:16.7]} 56. Kd2 {[%clk 0:00:04.7]} 56... a4
{[%clk 0:00:16.7]} 57. Kc3 {[%clk 0:00:05.6]} 57... a3 {[%clk 0:00:17.4]} 58.
Kc2 {[%clk 0:00:06.2]} 58... Rh2+ {[%clk 0:00:16.7]} 59. Kb1 {[%clk 0:00:07.1]}
59... c3 {[%clk 0:00:17.1]} 60. Ka2 {[%clk 0:00:08]} 60... c2 {[%clk 0:00:17.5]}
61. Ka1 {[%clk 0:00:08.4]} 61... c1=Q+ {[%clk 0:00:17.6]} 62. Ka2 {[%clk
0:00:09.3]} 62... Nc4+ {[%clk 0:00:17.2]} 63. Kb3 {[%clk 0:00:10.2]} 63... Qc2+
{[%clk 0:00:16.9]} 64. Kb4 {[%clk 0:00:09.3]} 64... a2 {[%clk 0:00:16.2]} 65.
Kc5 {[%clk 0:00:10.2]} 65... Na3+ {[%clk 0:00:16]} 66. Kd4 {[%clk 0:00:10.8]}
66... Rd2+ {[%clk 0:00:15.3]} 67. Ke3 {[%clk 0:00:11]} 67... Qd3+ {[%clk
0:00:15.5]} 68. Kf4 {[%clk 0:00:11.3]} 68... Rf2+ {[%clk 0:00:15.5]} 69. Kg5
{[%clk 0:00:12.2]} 69... Qg3+ {[%clk 0:00:15.9]} 0-1

[Event "Early-Titled-Tuesday-Blitz-May-28-2024"]
[Site "Chess.com"]
[Date "2024.05.28"]
[Round "10"]
[White "igorkovalenko"]
[Black "HansOnTwitch"]
[Result "0-1"]
[WhiteElo "2907"]
[BlackElo "3125"]
[TimeControl "180+1"]
[EndTime "9:59:25 PDT"]
[Termination "HansOnTwitch won by checkmate"]

1. d4 {[%clk 0:03:00.9]} 1... Nf6 {[%clk 0:02:58.9]} 2. Bg5 {[%clk 0:02:58.5]}
2... d5 {[%clk 0:02:53.2]} 3. Nd2 {[%clk 0:02:52.2]} 3... c5 {[%clk 0:02:50.5]}
4. c3 {[%clk 0:02:50.6]} 4... Qb6 {[%clk 0:02:47.5]} 5. Qb3 {[%clk 0:02:49.1]}
5... Nc6 {[%clk 0:02:47.8]} 6. e3 {[%clk 0:02:48.5]} 6... c4 {[%clk 0:02:31.4]}
7. Qc2 {[%clk 0:02:48.5]} 7... g6 {[%clk 0:02:31.3]} 8. Bxf6 {[%clk 0:02:48.5]}
8... exf6 {[%clk 0:02:32.2]} 9. b3 {[%clk 0:02:36.9]} 9... cxb3 {[%clk
0:02:30.6]} 10. axb3 {[%clk 0:02:36.8]} 10... Be7 {[%clk 0:02:26.8]} 11. Bd3
{[%clk 0:02:32.9]} 11... O-O {[%clk 0:02:26.2]} 12. Ne2 {[%clk 0:02:33.5]} 12...
Be6 {[%clk 0:02:21.2]} 13. O-O {[%clk 0:02:32.5]} 13... Rac8 {[%clk 0:02:18.8]}
14. Qb2 {[%clk 0:02:32.6]} 14... a6 {[%clk 0:01:48.5]} 15. Rfc1 {[%clk
0:02:30.3]} 15... Qd8 {[%clk 0:01:42.5]} 16. Nf3 {[%clk 0:02:11.4]} 16... Bd6
{[%clk 0:01:42]} 17. h3 {[%clk 0:02:09.1]} 17... Kg7 {[%clk 0:01:42]} 18. e4
{[%clk 0:01:48.8]} 18... Re8 {[%clk 0:01:34.7]} 19. Re1 {[%clk 0:01:33.9]} 19...
Bb8 {[%clk 0:01:29]} 20. Qb1 {[%clk 0:01:16.7]} 20... Qd7 {[%clk 0:01:25.5]} 21.
Ng3 {[%clk 0:01:11.9]} 21... Ne7 {[%clk 0:01:18.1]} 22. Qb2 {[%clk 0:00:52.9]}
22... Bxg3 {[%clk 0:01:13.1]} 23. fxg3 {[%clk 0:00:53.8]} 23... Qc7 {[%clk
0:01:13.4]} 24. c4 {[%clk 0:00:50.7]} 24... dxc4 {[%clk 0:01:02.4]} 25. bxc4
{[%clk 0:00:50.9]} 25... Qxg3 {[%clk 0:00:58.9]} 26. d5 {[%clk 0:00:42.7]} 26...
Bxh3 {[%clk 0:00:57.9]} 27. Bf1 {[%clk 0:00:42.8]} 27... Bg4 {[%clk 0:00:48.9]}
28. e5 {[%clk 0:00:39.9]} 28... Ng8 {[%clk 0:00:41.9]} 29. exf6+ {[%clk
0:00:35]} 29... Nxf6 {[%clk 0:00:42.8]} 30. Ne5 {[%clk 0:00:32.9]} 30... Bf5
{[%clk 0:00:38.2]} 31. Re2 {[%clk 0:00:28.9]} 31... Be4 {[%clk 0:00:28.6]} 32.
Nd7 {[%clk 0:00:28.1]} 32... Qd6 {[%clk 0:00:23]} 33. Rf2 {[%clk 0:00:21.1]}
33... Qxd7 {[%clk 0:00:21.3]} 34. Rxf6 {[%clk 0:00:21]} 34... Kg8 {[%clk
0:00:20.8]} 35. Rb6 {[%clk 0:00:21.6]} 35... Re7 {[%clk 0:00:16.2]} 36. Ra3
{[%clk 0:00:22.1]} 36... Qc7 {[%clk 0:00:15.3]} 37. Rab3 {[%clk 0:00:22.4]}
37... Qc5+ {[%clk 0:00:14.7]} 38. Qf2 {[%clk 0:00:22.3]} 38... Qxf2+ {[%clk
0:00:04]} 39. Kxf2 {[%clk 0:00:23.2]} 39... Rb8 {[%clk 0:00:04.9]} 40. Rxa6
{[%clk 0:00:23.1]} 40... Rd8 {[%clk 0:00:02.8]} 41. Rab6 {[%clk 0:00:23.2]}
41... Rdd7 {[%clk 0:00:03.4]} 42. d6 {[%clk 0:00:21.2]} 42... Re5 {[%clk
0:00:01.1]} 43. Bd3 {[%clk 0:00:18]} 43... Bc6 {[%clk 0:00:01.3]} 44. Be2 {[%clk
0:00:15.6]} 44... Rxd6 {[%clk 0:00:01.7]} 45. Bf3 {[%clk 0:00:16]} 45... Rd2+
{[%clk 0:00:02.1]} 46. Kg3 {[%clk 0:00:16]} 46... Bxf3 {[%clk 0:00:02.8]} 47.
gxf3 {[%clk 0:00:16.7]} 47... Re7 {[%clk 0:00:03.2]} 48. Rxb7 {[%clk 0:00:17]}
48... Rxb7 {[%clk 0:00:03.9]} 49. Rxb7 {[%clk 0:00:17.9]} 49... Rc2 {[%clk
0:00:04.8]} 50. Rc7 {[%clk 0:00:18.8]} 50... Kg7 {[%clk 0:00:05.2]} 51. Kf4
{[%clk 0:00:19.3]} 51... h5 {[%clk 0:00:05.1]} 52. c5 {[%clk 0:00:19.9]} 52...
Rc4+ {[%clk 0:00:05.2]} 53. Kg3 {[%clk 0:00:20.6]} 53... g5 {[%clk 0:00:05.3]}
54. c6 {[%clk 0:00:21.2]} 54... Kg6 {[%clk 0:00:05.4]} 55. Rc8 {[%clk
0:00:21.3]} 55... h4+ {[%clk 0:00:06.1]} 56. Kg2 {[%clk 0:00:21.3]} 56... f6
{[%clk 0:00:06]} 57. c7 {[%clk 0:00:20.8]} 57... Kf5 {[%clk 0:00:06.1]} 58. Kh2
{[%clk 0:00:21.4]} 58... Rc3 {[%clk 0:00:04.1]} 59. Kg2 {[%clk 0:00:21.5]} 59...
Rc2+ {[%clk 0:00:04.1]} 60. Kh3 {[%clk 0:00:21.8]} 60... Rc6 {[%clk 0:00:02.5]}
61. Kh2 {[%clk 0:00:21.9]} 61... Rc3 {[%clk 0:00:02.6]} 62. Kg2 {[%clk
0:00:22.2]} 62... Rc5 {[%clk 0:00:02.1]} 63. Kh3 {[%clk 0:00:22.4]} 63... Rc2
{[%clk 0:00:01.8]} 64. f4 {[%clk 0:00:12.9]} 64... Kxf4 {[%clk 0:00:02.1]} 65.
Rf8 {[%clk 0:00:11.8]} 65... g4+ {[%clk 0:00:02.6]} 66. Kxh4 {[%clk 0:00:11.9]}
66... Rh2# {[%clk 0:00:03.5]} 0-1

[Event "Early-Titled-Tuesday-Blitz-May-28-2024"]
[Site "Chess.com"]
[Date "2024.05.28"]
[Round "10"]
[White "HamedWafa4"]
[Black "amanjazu"]
[Result "0-1"]
[WhiteElo "2767"]
[BlackElo "2596"]
[TimeControl "180+1"]
[EndTime "9:59:34 PDT"]
[Termination "amanjazu won by checkmate"]

1. e4 {[%clk 0:03:00.9]} 1... c5 {[%clk 0:02:59.6]} 2. Nf3 {[%clk 0:02:59.3]}
2... Nc6 {[%clk 0:02:58.5]} 3. Nc3 {[%clk 0:02:57.5]} 3... e6 {[%clk 0:02:57.3]}
4. d4 {[%clk 0:02:57.2]} 4... cxd4 {[%clk 0:02:58.2]} 5. Nxd4 {[%clk 0:02:57.9]}
5... Qc7 {[%clk 0:02:56.9]} 6. g3 {[%clk 0:02:57.5]} 6... Nf6 {[%clk 0:02:56.5]}
7. Bg2 {[%clk 0:02:56.7]} 7... a6 {[%clk 0:02:53.9]} 8. O-O {[%clk 0:02:55.7]}
8... Bc5 {[%clk 0:02:52.1]} 9. Nxc6 {[%clk 0:02:25.8]} 9... bxc6 {[%clk
0:02:53]} 10. Re1 {[%clk 0:02:14.4]} 10... e5 {[%clk 0:02:49.7]} 11. Bg5 {[%clk
0:02:13.7]} 11... h6 {[%clk 0:02:45.8]} 12. Bxf6 {[%clk 0:02:13.6]} 12... gxf6
{[%clk 0:02:46.7]} 13. Na4 {[%clk 0:02:05.2]} 13... Bd4 {[%clk 0:02:42.2]} 14.
c3 {[%clk 0:02:04.3]} 14... Ba7 {[%clk 0:02:41.5]} 15. Qf3 {[%clk 0:01:58.3]}
15... Ke7 {[%clk 0:02:39.5]} 16. Rad1 {[%clk 0:01:51.6]} 16... d6 {[%clk
0:02:39.7]} 17. Qh5 {[%clk 0:01:51.2]} 17... Be6 {[%clk 0:02:36.1]} 18. b3
{[%clk 0:01:50.6]} 18... Rag8 {[%clk 0:02:34.9]} 19. Bh3 {[%clk 0:01:49.1]}
19... Rg5 {[%clk 0:02:29.4]} 20. Qh4 {[%clk 0:01:49.1]} 20... Qd7 {[%clk
0:02:28.1]} 21. Bxe6 {[%clk 0:01:46.3]} 21... Qxe6 {[%clk 0:02:29]} 22. Kg2
{[%clk 0:01:36.9]} 22... Rg4 {[%clk 0:02:10.6]} 23. Qh5 {[%clk 0:01:25.4]} 23...
Rg5 {[%clk 0:02:10.1]} 24. Qh4 {[%clk 0:01:24.4]} 24... Rg4 {[%clk 0:02:08.7]}
25. Qh3 {[%clk 0:01:24.3]} 25... h5 {[%clk 0:02:05.6]} 26. f3 {[%clk 0:01:15.1]}
26... Rgg8 {[%clk 0:02:05.4]} 27. Qxe6+ {[%clk 0:01:11.2]} 27... fxe6 {[%clk
0:02:06.3]} 28. Nb2 {[%clk 0:01:11.6]} 28... d5 {[%clk 0:02:05]} 29. Nd3 {[%clk
0:01:09.9]} 29... Kd6 {[%clk 0:01:48.9]} 30. f4 {[%clk 0:01:08.3]} 30... Re8
{[%clk 0:01:47.7]} 31. Re2 {[%clk 0:00:57.7]} 31... h4 {[%clk 0:01:43.9]} 32.
Rde1 {[%clk 0:00:56.5]} 32... hxg3 {[%clk 0:01:37.2]} 33. hxg3 {[%clk
0:00:55.6]} 33... exf4 {[%clk 0:01:34.6]} 34. Nxf4 {[%clk 0:00:44.8]} 34... e5
{[%clk 0:01:33.7]} 35. Ng6 {[%clk 0:00:45.3]} 35... Rhg8 {[%clk 0:01:28.2]} 36.
Nh4 {[%clk 0:00:45.3]} 36... Ke6 {[%clk 0:01:22.4]} 37. Rd1 {[%clk 0:00:42.3]}
37... Rg4 {[%clk 0:01:19.1]} 38. Nf5 {[%clk 0:00:33.7]} 38... Bc5 {[%clk
0:01:08.5]} 39. Kf3 {[%clk 0:00:28.8]} 39... Reg8 {[%clk 0:00:53.7]} 40. b4
{[%clk 0:00:21.6]} 40... Bf8 {[%clk 0:00:46.7]} 41. Kg2 {[%clk 0:00:16.8]} 41...
dxe4 {[%clk 0:00:39.5]} 42. Rf1 {[%clk 0:00:16.6]} 42... R8g5 {[%clk 0:00:30.9]}
43. Ref2 {[%clk 0:00:17.1]} 43... e3 {[%clk 0:00:31.2]} 44. Nxe3 {[%clk
0:00:12]} 44... Rxg3+ {[%clk 0:00:31.2]} 45. Kh2 {[%clk 0:00:12.7]} 45... Rxe3
{[%clk 0:00:20.5]} 46. Rxf6+ {[%clk 0:00:12]} 46... Kd5 {[%clk 0:00:21]} 47.
Rxf8 {[%clk 0:00:11.8]} 47... Rxc3 {[%clk 0:00:20.2]} 48. R8f6 {[%clk 0:00:10]}
48... Rc2+ {[%clk 0:00:18]} 49. Kh3 {[%clk 0:00:10.3]} 49... Rgg2 {[%clk
0:00:14.9]} 50. Rd1+ {[%clk 0:00:07.1]} 50... Rgd2 {[%clk 0:00:15.2]} 51. Re1
{[%clk 0:00:06.6]} 51... Rd3+ {[%clk 0:00:14.3]} 52. Kg4 {[%clk 0:00:06.6]}
52... Rh2 {[%clk 0:00:14.5]} 53. Rf5 {[%clk 0:00:05.7]} 53... Rg2+ {[%clk
0:00:13.7]} 54. Kh4 {[%clk 0:00:05.8]} 54... Rd4+ {[%clk 0:00:10.1]} 55. Kh3
{[%clk 0:00:06]} 55... Re4 {[%clk 0:00:03.3]} 56. Rd1+ {[%clk 0:00:01.7]} 56...
Ke6 {[%clk 0:00:03.5]} 57. Rf8 {[%clk 0:00:02.6]} 57... Rg7 {[%clk 0:00:02.6]}
58. Re8+ {[%clk 0:00:03.5]} 58... Re7 {[%clk 0:00:02.9]} 59. Rh8 {[%clk
0:00:03.9]} 59... Rf4 {[%clk 0:00:03.2]} 60. Rh6+ {[%clk 0:00:04.5]} 60... Rf6
{[%clk 0:00:03.7]} 61. Rh8 {[%clk 0:00:05]} 61... Rg7 {[%clk 0:00:03.8]} 62.
Re8+ {[%clk 0:00:05]} 62... Re7 {[%clk 0:00:04.2]} 63. Red8 {[%clk 0:00:05.7]}
63... e4 {[%clk 0:00:04.7]} 64. Kg3 {[%clk 0:00:04.5]} 64... Ke5 {[%clk
0:00:05.2]} 65. Re1 {[%clk 0:00:04.1]} 65... Rg7+ {[%clk 0:00:05.5]} 66. Kh4
{[%clk 0:00:04.6]} 66... Rh6# {[%clk 0:00:06.4]} 0-1

[Event "Early-Titled-Tuesday-Blitz-May-28-2024"]
[Site "Chess.com"]
[Date "2024.05.28"]
[Round "10"]
[White "Louis-Paulsen-Fan"]
[Black "RantomOpening"]
[Result "0-1"]
[WhiteElo "2328"]
[BlackElo "2564"]
[TimeControl "180+1"]
[EndTime "9:59:41 PDT"]
[Termination "RantomOpening won by checkmate"]

1. d4 {[%clk 0:03:00.9]} 1... d5 {[%clk 0:02:56.1]} 2. Nf3 {[%clk 0:03:00.9]}
2... e6 {[%clk 0:02:56.1]} 3. c4 {[%clk 0:03:01.4]} 3... Nf6 {[%clk 0:02:55.9]}
4. Nc3 {[%clk 0:03:01.9]} 4... a6 {[%clk 0:02:50.1]} 5. cxd5 {[%clk 0:02:58.4]}
5... exd5 {[%clk 0:02:49.8]} 6. Bg5 {[%clk 0:02:57.9]} 6... c6 {[%clk
0:02:50.2]} 7. e3 {[%clk 0:02:57.9]} 7... Be6 {[%clk 0:02:50.3]} 8. Bd3 {[%clk
0:02:56.7]} 8... Bd6 {[%clk 0:02:50]} 9. Ne5 {[%clk 0:02:54.2]} 9... c5 {[%clk
0:02:48.7]} 10. O-O {[%clk 0:02:50.1]} 10... Nc6 {[%clk 0:02:48]} 11. Nxc6
{[%clk 0:02:34.6]} 11... bxc6 {[%clk 0:02:48.9]} 12. dxc5 {[%clk 0:02:34.8]}
12... Bxc5 {[%clk 0:02:48.6]} 13. Rc1 {[%clk 0:02:34.9]} 13... Bd6 {[%clk
0:02:47.3]} 14. Qe2 {[%clk 0:02:22.3]} 14... O-O {[%clk 0:02:46.3]} 15. Bxa6
{[%clk 0:02:16.3]} 15... Rxa6 {[%clk 0:02:37.7]} 16. Qxa6 {[%clk 0:02:15.4]}
16... Bxh2+ {[%clk 0:02:37.2]} 17. Kh1 {[%clk 0:01:46]} 17... Bd6 {[%clk
0:02:24.9]} 18. Qxc6 {[%clk 0:01:42.3]} 18... Be7 {[%clk 0:02:24.7]} 19. Rfd1
{[%clk 0:01:38.2]} 19... Ng4 {[%clk 0:02:23.1]} 20. Bf4 {[%clk 0:01:20.1]} 20...
Nxf2+ {[%clk 0:02:18.2]} 21. Kg1 {[%clk 0:01:20.3]} 21... Nxd1 {[%clk 0:02:18]}
22. Rxd1 {[%clk 0:01:20.7]} 22... Qa5 {[%clk 0:01:55.9]} 23. Nxd5 {[%clk
0:01:08.7]} 23... Bc5 {[%clk 0:01:32.9]} 24. Qc7 {[%clk 0:01:00.3]} 24... Qa4
{[%clk 0:01:07.4]} 25. b3 {[%clk 0:00:54.3]} 25... Qb5 {[%clk 0:01:05.7]} 26.
Ne7+ {[%clk 0:00:48]} 26... Bxe7 {[%clk 0:01:01.3]} 27. Qxe7 {[%clk 0:00:45.8]}
27... Qe2 {[%clk 0:01:01.4]} 28. Rf1 {[%clk 0:00:43]} 28... Qxa2 {[%clk
0:00:57.7]} 29. b4 {[%clk 0:00:38.2]} 29... h6 {[%clk 0:00:51]} 30. Be5 {[%clk
0:00:28.2]} 30... Bd5 {[%clk 0:00:44.6]} 31. Rf2 {[%clk 0:00:26.3]} 31... Qb1+
{[%clk 0:00:43.6]} 32. Kh2 {[%clk 0:00:26.7]} 32... Qe4 {[%clk 0:00:42.6]} 33.
Bd6 {[%clk 0:00:20.6]} 33... Qxe7 {[%clk 0:00:33.8]} 34. Bxe7 {[%clk 0:00:21.5]}
34... Re8 {[%clk 0:00:34.3]} 35. Bc5 {[%clk 0:00:20.9]} 35... Bc6 {[%clk
0:00:31.7]} 36. Rd2 {[%clk 0:00:19.1]} 36... Re6 {[%clk 0:00:28.4]} 37. Rd8+
{[%clk 0:00:18.1]} 37... Kh7 {[%clk 0:00:28.4]} 38. Rb8 {[%clk 0:00:18.7]} 38...
Rg6 {[%clk 0:00:27.8]} 39. g3 {[%clk 0:00:18.2]} 39... Rf6 {[%clk 0:00:24.6]}
40. b5 {[%clk 0:00:16.2]} 40... Rf2+ {[%clk 0:00:20.5]} 41. Kg1 {[%clk
0:00:16.5]} 41... Rg2+ {[%clk 0:00:20.5]} 42. Kf1 {[%clk 0:00:16.9]} 42... Bd5
{[%clk 0:00:20.4]} 43. b6 {[%clk 0:00:16.8]} 43... Rxg3 {[%clk 0:00:12.7]} 44.
Rd8 {[%clk 0:00:17]} 44... Rg5 {[%clk 0:00:08.7]} 45. Rd7 {[%clk 0:00:13.6]}
45... Bc6 {[%clk 0:00:08.6]} 46. b7 {[%clk 0:00:11.1]} 46... Bxb7 {[%clk
0:00:07.2]} 47. Rxb7 {[%clk 0:00:11.3]} 47... Rxc5 {[%clk 0:00:06.5]} 48. Rxf7
{[%clk 0:00:11.7]} 48... Kg6 {[%clk 0:00:06.3]} 49. Ra7 {[%clk 0:00:11.5]} 49...
h5 {[%clk 0:00:06]} 50. Kf2 {[%clk 0:00:11.5]} 50... Rg5 {[%clk 0:00:06.2]} 51.
Kf3 {[%clk 0:00:09.8]} 51... Rg1 {[%clk 0:00:06.2]} 52. Ra5 {[%clk 0:00:07.5]}
52... Kh6 {[%clk 0:00:06]} 53. Rb5 {[%clk 0:00:06.2]} 53... g5 {[%clk
0:00:06.1]} 54. Rb6+ {[%clk 0:00:06.7]} 54... Kg7 {[%clk 0:00:06.1]} 55. Kf2
{[%clk 0:00:07.2]} 55... Rc1 {[%clk 0:00:05.7]} 56. Kf3 {[%clk 0:00:07.2]} 56...
Rf1+ {[%clk 0:00:03.4]} 57. Kg2 {[%clk 0:00:07]} 57... Rf6 {[%clk 0:00:04.3]}
58. Rb7+ {[%clk 0:00:06.6]} 58... Kg6 {[%clk 0:00:04.7]} 59. Kg3 {[%clk
0:00:07.3]} 59... Re6 {[%clk 0:00:05]} 60. Kf3 {[%clk 0:00:06.9]} 60... g4+
{[%clk 0:00:05.4]} 61. Kf4 {[%clk 0:00:06.8]} 61... Rf6+ {[%clk 0:00:05.8]} 62.
Ke4 {[%clk 0:00:06.4]} 62... h4 {[%clk 0:00:04.6]} 63. Rb8 {[%clk 0:00:06.4]}
63... Kg7 {[%clk 0:00:04]} 64. Rb2 {[%clk 0:00:06.1]} 64... h3 {[%clk 0:00:04]}
65. Rh2 {[%clk 0:00:05.7]} 65... g3 {[%clk 0:00:02]} 66. Rxh3 {[%clk 0:00:05.5]}
66... g2 {[%clk 0:00:02.5]} 67. Rg3+ {[%clk 0:00:05.4]} 67... Rg6 {[%clk
0:00:03]} 68. Rxg6+ {[%clk 0:00:02.5]} 68... Kxg6 {[%clk 0:00:03.9]} 69. Kf3
{[%clk 0:00:03.3]} 69... g1=Q {[%clk 0:00:03.9]} 70. e4 {[%clk 0:00:04.2]} 70...
Kg5 {[%clk 0:00:03.1]} 71. e5 {[%clk 0:00:05.1]} 71... Qd4 {[%clk 0:00:03.4]}
72. e6 {[%clk 0:00:06]} 72... Qe5 {[%clk 0:00:03.4]} 73. e7 {[%clk 0:00:06.9]}
73... Qxe7 {[%clk 0:00:03.6]} 74. Kf2 {[%clk 0:00:06.2]} 74... Kg4 {[%clk
0:00:04.5]} 75. Kg2 {[%clk 0:00:06.4]} 75... Qe2+ {[%clk 0:00:04.6]} 76. Kg1
{[%clk 0:00:06.6]} 76... Kg3 {[%clk 0:00:05.5]} 77. Kh1 {[%clk 0:00:07.5]} 77...
Qh2# {[%clk 0:00:05.8]} 0-1